[Event "Baku Open 2024"]
[Site "Baku"]
[Date "2024.07.04"]
[Round "6.9"]
[White "Shyam, Sundar M."]
[Black "Talibov, Shiroghlan"]
[Result "0-1"]
[ECO "A17"]
[WhiteElo "2493"]
[BlackElo "2361"]
[Annotator "TA"]
[PlyCount "90"]
[EventDate "2024.06.29"]
[EventType "swiss"]
[EventCountry "AZE"]
[SourceTitle "playchess.com"]
[Source "ChessBase"]
[SourceQuality "1"]
[TimeControl "5400+30"]

{[%evp 9,90,4,11,0,0,0,0,0,0,0,0,0,0,0,4,0,21,16,14,17,11,0,-2,-36,-29,-37,-13,-16,0,-48,-19,-79,-72,-127,-120,-124,-112,-113,-17,-9,-42,-26,0,0,55,0,61,4,42,-60,-70,-85,-56,-66,-62,-62,-64,-85,-82,-347,-352,-1264,-1261,-5473,-5418,-6191,-6199,-6211,-6199,-6197,-6183,-6070,-6091,-5377,-5281,-5281,-4133,-29994,-29995,-29995,-1074,-29996,-29997]} 1. Nf3 {[%emt 0:02:38]} d5 {[%emt 0:00:59]} 2. e3 {[%emt 0:00:40]} Nf6 {[%emt 0:00:29]} 3. c4 {[%emt 0:00:29]} e6 {[%emt 0:03:32]} 4. Nc3 {[%emt 0:00:53]} Nbd7 {[%emt 0:02:35]} 5. b3 {[%emt 0:01:25]} b6 {[%emt 0:00:41]} 6. cxd5 {[%emt 0:04:35]} exd5 {[%emt 0:02:22]} 7. Bb2 {[%emt 0:00:07]} Bb7 {[%emt 0:00:57]} 8. Rc1 {[%emt 0:00:06] The position is equal.} a6 {[%emt 0:00:46]} 9. d4 {[%emt 0:01:26]} Bd6 {[%emt 0:00:48]} 10. g3 {[%emt 0:00:06]} O-O {[%emt 0:00:50]} 11. Bg2 {[%emt 0:00:04]} Re8 {[%emt 0:01:42]} 12. O-O {[%emt 0:01:00]} Rc8 {[%emt 0:03:30]} 13. Re1 {[%emt 0:05:51]} Qe7 {[%emt 0:08:32]} 14. Re2 {[%emt 0:03:07]} Ne4 {[%emt 0:01:55]} 15. Nxe4 {[%emt 0:01:49]} dxe4 {[%emt 0:00:19]} 16. Nd2 {[%emt 0:00:05]} b5 {[%emt 0:00:08]} 17. Nb1 {[%emt 0:03:56]} Nf6 {[%emt 0:07:18]} 18. Rec2 {[%emt 0:06:29]} Rcd8 {[%emt 0:02:52]} 19. Qe1 {[%emt 0:06:28]} (19. Ba3 $11 {should be considered.}) 19... h5 {[%emt 0:00:56]} 20. Qa5 {[%emt 0:12:12] [#]} (20. Nd2 $11) 20... Nd5 $1 $17 {[%emt 0:30:53] ...Bb4 would now be deadly.} 21. Ba3 {[%emt 0:09:05]} ({White should try} 21. a3) 21... b4 {[%emt 0:04:07]} 22. Bb2 {[%emt 0:00:03]} h4 {[%emt 0:06:49]} 23. Nd2 {[%emt 0:00:06]} f5 {[%emt 0:00:03]} (23... hxg3 $17 24. hxg3 Nf6) 24. Nc4 $11 {[%emt 0:01:46]} c6 {[%emt 0:02:51]} 25. Ne5 {[%emt 0:07:43]} Bxe5 {[%emt 0:05:45]} 26. dxe5 {[%emt 0:00:02]} Qg5 {[%emt 0:02:24]} (26... hxg3 $11 27. hxg3 Qg5) 27. Qc5 {[%emt 0:14:09]} (27. Re1 $1 $14) 27... Re6 {[%emt 0:00:49]} (27... hxg3 $11 28. hxg3 Qh5) 28. Rd2 {[%emt 0:00:14]} (28. Bd4 $14) 28... Rf8 {[%emt 0:01:09][%cal Oa6a5] [#]} (28... Ra8 {feels hotter.} 29. Bf1 hxg3 30. fxg3 Nxe3 31. Rd7 Bc8) 29. Rxd5 {[%emt 0:15:10]} cxd5 $15 {[%emt 0:00:01]} 30. Qxb4 {[%emt 0:00:00]} Rf7 {[%emt 0:01:00]} 31. Bd4 {[%emt 0:00:26]} Rh6 {[%emt 0:02:58]} 32. Qa5 {[%emt 0:01:49]} Kh7 {[%emt 0:01:14]} 33. a4 {[%emt 0:01:10]} Qh5 {[%emt 0:00:54]} 34. Qd2 $2 {[%emt 0:01:02][%mdl 8192] This costs White the game.} (34. e6 $17 Rxe6 35. b4) 34... hxg3 $19 {[%emt 0:00:23]} 35. hxg3 {[%emt 0:00:02] [#]} (35. h3 gxf2+ 36. Qxf2) 35... a5 $1 {[%emt 0:00:09][%mdl 512]} 36. Rc5 {[%emt 0:00:15]} (36. Qxa5 Ba6) 36... Ba6 {[%emt 0:00:48][%csl Gh6][%cal Rh5h2]} 37. Rb5 {[%emt 0:00:10]} Rb7 {[%emt 0:00:07]} 38. Qxa5 {[%emt 0:01:05]} Bxb5 {[%emt 0:00:55]} 39. axb5 {[%emt 0:00:02]} Qd1+ {[%emt 0:00:07]} 40. Bf1 {[%emt 0:00:03] [#]} Rh1+ $3 {[%emt 0:00:12][%mdl 512]} 41. Kxh1 {[%emt 0:00:01]} Qxf1+ {[%emt 0:00:06]} 42. Kh2 {[%emt 0:00:01]} Qxf2+ {[%emt 0:00:05]} 43. Kh3 {[%emt 0:00:17]} g5 {[%emt 0:01:18]} 44. Qa6 {[%emt 0:01:44]} g4+ {[%emt 0:00:16]} 45. Kh4 {[%emt 0:00:01]} Rg7 {[%emt 0:00:06] Weighted Error Value: White=0.77/Black=0.30.  Loses game:     	White=1     	---        Mistake:       	White=7     	Black=3      Inaccurate:     	White=2     	Black=4      OK:         	White=8     	Black=7      Best:        	White=1     	Black=2      Strong:       	---       	Black=1} 0-1

[Event "Baku Open 2024"]
[Site "Baku"]
[Date "2024.07.04"]
[Round "6.10"]
[White "Ahmadzada, Ahmad"]
[Black "Atakishiyev, Elmar"]
[Result "1-0"]
[ECO "B40"]
[WhiteElo "2481"]
[BlackElo "2356"]
[Annotator "TA"]
[PlyCount "53"]
[EventDate "2024.06.29"]
[EventType "swiss"]
[EventCountry "AZE"]
[SourceTitle "playchess.com"]
[Source "ChessBase"]
[SourceQuality "1"]
[TimeControl "5400+30"]

{[%evp 9,53,4,20,20,51,22,62,56,70,64,94,37,84,90,81,93,106,95,122,124,121,105,133,142,150,133,183,145,168,171,225,177,208,208,231,229,300,310,309,303,283,288,427,287,580,572]} 1. e4 {[%emt 0:00:05]} c5 {[%emt 0:05:39]} 2. Nf3 {[%emt 0:00:08]} e6 {[%emt 0:00:22]} 3. c3 {[%emt 0:02:28]} d5 {[%emt 0:00:06]} 4. e5 {[%emt 0:00:19]} d4 {[%emt 0:05:31]} 5. Na3 {[%emt 0:02:52]} a6 {[%emt 0:02:56]} 6. Bd3 {[%emt 0:02:17]} Nc6 {[%emt 0:01:59]} 7. Be4 {[%emt 0:02:51]} Nge7 {[%emt 0:02:26]} 8. O-O {[%emt 0:03:01] White is slightly better.} Qc7 {[%emt 0:05:22]} 9. Nc4 {[%emt 0:03:53] Hoping for Nd6+.} Ng6 {[%emt 0:07:43]} 10. Re1 {[%emt 0:02:06] White is more active.} ({But not} 10. Bxc6+ $6 Qxc6 11. cxd4 b5 $11) ({White should try} 10. cxd4 $16 cxd4 11. d3) 10... Be7 {[%emt 0:00:55]} (10... Rb8 $14 {feels stronger.}) 11. cxd4 $16 {[%emt 0:05:06]} ({Don't play} 11. Bxc6+ Qxc6 12. cxd4 b5 $14) 11... Nxd4 {[%emt 0:10:31]} 12. Nxd4 {[%emt 0:01:15]} cxd4 {[%emt 0:00:04]} 13. d3 {[%emt 0:00:22]} O-O {[%emt 0:00:07]} 14. Bd2 {[%emt 0:01:22]} a5 {[%emt 0:12:22]} 15. Rc1 {[%emt 0:03:25]} Bb4 {[%emt 0:02:00]} 16. a3 {[%emt 0:08:55]} Bxd2 {[%emt 0:02:28]} 17. Qxd2 {[%emt 0:00:23]} Qd8 {[%emt 0:01:07]} (17... Bd7 $16 {might work better.} 18. Bxg6 fxg6) 18. f4 {[%emt 0:02:56]} Ne7 {[%emt 0:04:39]} 19. Nd6 {[%emt 0:04:15]} Bd7 {[%emt 0:00:24]} (19... f6 {keeps fighting.} 20. Qc2 (20. Bxb7 Bxb7 21. Nxb7 Qd5 $16) 20... Nc6 21. Bxc6 bxc6 22. Qxc6 Bd7) 20. Bxb7 {[%emt 0:03:17]} Rb8 {[%emt 0:01:45] [#]} 21. Be4 $1 {[%emt 0:01:59]} a4 {[%emt 0:01:01]} 22. Qf2 {[%emt 0:02:16]} Qb6 {[%emt 0:00:48] [#]} 23. Bxh7+ $1 {[%emt 0:02:24][%mdl 512]} Kxh7 {[%emt 0:00:03]} 24. Qh4+ {[%emt 0:00:15]} Kg8 {[%emt 0:00:04]} 25. Qxe7 {[%emt 0:00:07]} Bc6 {[%emt 0:00:13]} (25... Qd8 {was worth a try.} 26. Qxd8 Rfxd8) 26. Re2 {[%emt 0:03:30]} Bd5 $2 {[%emt 0:00:22]} (26... Bb5 27. Rd2 Bxd3 28. Rxd3 Qxb2) 27. Rc7 {[%emt 0:02:39] Black did not feel at home in the position after the opening.   Weighted Error Value: White=0.23 (precise) /Black=0.59.  Mistake:       	White=1     	Black=5      Inaccurate:     	White=2     	Black=4      OK:         	White=11    	Black=1      Best:        	White=2     	Black=1} 1-0

[Event "Baku Open 2024"]
[Site "Baku"]
[Date "2024.07.04"]
[Round "6.11"]
[White "Assaubayeva, Bibisara"]
[Black "Israilov, Agil"]
[Result "1/2-1/2"]
[ECO "E92"]
[WhiteElo "2472"]
[BlackElo "2141"]
[Annotator "TA"]
[PlyCount "45"]
[EventDate "2024.06.29"]
[EventType "swiss"]
[EventCountry "AZE"]
[SourceTitle "playchess.com"]
[Source "ChessBase"]
[SourceQuality "1"]
[TimeControl "5400+30"]

{[%evp 17,45,32,48,42,35,35,47,0,-17,-31,-31,-38,-30,-33,-27,-92,0,0,0,-10,0,-39,-8,-37,-41,-39,-30,-35,-38,-47]} 1. Nf3 {[%emt 0:00:12]} Nf6 {[%emt 0:00:06]} 2. c4 {[%emt 0:00:05]} g6 {[%emt 0:00:04]} 3. Nc3 {[%emt 0:00:05]} Bg7 {[%emt 0:00:04]} 4. e4 {[%emt 0:00:10]} d6 {[%emt 0:00:05]} 5. d4 {[%emt 0:00:13][%cal Bd2d4,Bd4d5][%mdl 32]} O-O {[%emt 0:00:05]} 6. Be2 {[%emt 0:00:23]} e5 {[%emt 0:00:06]} 7. d5 {[%emt 1:32:52]} a5 {[%emt 0:00:08]} 8. Bg5 {[%emt 0:00:00]} Na6 {[%emt 0:00:14]} 9. Nd2 {[%emt 0:00:00]} Nc5 {[%emt 0:02:01]} 10. g4 {[%emt 0:00:00]} c6 {[%emt 0:02:06]} 11. Be3 {[%emt 0:00:00]} cxd5 {[%emt 0:04:42]} 12. exd5 {[%emt 0:00:00]} (12. cxd5 $14 b5 13. Bxc5 (13. Bxb5 Bxg4 14. f3 Bd7 $11) 13... dxc5 14. h4 (14. Nxb5 Rb8 $14)) 12... e4 {[%emt 0:17:35][%cal Oc8g4] ...Bxg4! is the strong threat.} 13. g5 {[%emt 0:00:00][%cal Oe3c5] Strongly threatening Bxc5!} Nfd7 {[%emt 0:00:18]} 14. Ndxe4 {[%emt 0:00:00]} Nxe4 {[%emt 0:00:27]} 15. Nxe4 {[%emt 0:00:00]} Qe7 {[%emt 0:01:16]} 16. Qc2 {[%emt 0:00:00] [#]} (16. Nc3 $11) 16... Bxb2 {[%emt 0:06:23]} 17. Qxb2 $11 {[%emt 0:00:00]} Qxe4 {[%emt 0:00:05]} 18. Rg1 {[%emt 0:00:00]} Re8 {[%emt 0:04:51]} 19. O-O-O {[%emt 0:00:00]} Nc5 {[%emt 0:03:42][%cal Bd7c5,Bc5e4,Be4c3][%mdl 32]} 20. Qd4 {[%emt 0:00:00]} Bf5 {[%emt 0:01:00]} 21. Qxe4 {[%emt 0:00:00]} Nxe4 {[%emt 0:00:07]} 22. Bf1 {[%emt 0:00:00]} Nc3 {[%emt 0:12:06][%csl LRa2,LRd1]} 23. Rd2 {[%emt 0:00:00] Weighted Error Value: White=0.23 (precise) /Black=0.10 (very precise) .  Mistake:       	White=2     	Black=1      Inaccurate:     	White=2     	---        OK:         	White=4     	Black=6} 1/2-1/2

[Event "Baku Open 2024"]
[Site "Baku"]
[Date "2024.07.04"]
[Round "6.12"]
[White "Akhilbay, Imangali"]
[Black "Babazada, Khazar"]
[Result "1/2-1/2"]
[ECO "B03"]
[WhiteElo "2303"]
[BlackElo "2468"]
[Annotator "TA"]
[PlyCount "124"]
[EventDate "2024.06.29"]
[EventType "swiss"]
[EventCountry "AZE"]
[SourceTitle "playchess.com"]
[Source "ChessBase"]
[SourceQuality "1"]
[TimeControl "5400+30"]

{[%evp 25,124,135,164,124,114,80,85,57,55,44,51,49,162,165,168,166,168,168,168,168,167,167,167,159,152,113,119,129,128,127,140,141,129,88,172,169,153,105,211,211,212,212,212,212,212,212,212,212,212,213,204,204,204,207,524,493,605,604,519,389,427,407,431,425,301,464,281,64,64,77,701,685,661,398,213,422,358,213,218,116,135,8,8,8,8,8,8,8,8,8,8,8,8,8,8,8,8,0,0,0,0]} 1. e4 {[%emt 0:00:06]} Nf6 {[%emt 0:00:47]} 2. e5 {[%emt 0:01:04]} Nd5 {[%emt 0:00:05]} 3. d4 {[%emt 0:00:27]} d6 {[%emt 0:00:05]} 4. c4 {[%emt 0:00:56]} Nb6 {[%emt 0:00:28]} 5. f4 {[%emt 0:01:01]} dxe5 {[%emt 0:02:00]} 6. fxe5 {[%emt 0:00:19]} Bf5 {[%emt 0:00:09]} 7. Nc3 {[%emt 0:02:13]} e6 {[%emt 0:03:06]} 8. Be3 {[%emt 0:01:01] B03: Alekhine's Defence: Four Pawns Attack.} Be7 {[%emt 0:00:30]} 9. Nf3 {[%emt 0:01:00]} O-O {[%emt 0:04:22] 9...Nc6 is vanishing.} 10. Bd3 {[%emt 0:01:20]} Bg6 {[%emt 0:09:57]} 11. O-O {[%emt 0:08:09]} Nc6 {[%emt 0:09:08]} 12. Bxg6 $146 {[%emt 0:08:15]} ({Predecessor:} 12. a3 Na5 13. Bxg6 hxg6 14. b3 Rc8 15. d5 exd5 16. cxd5 f6 17. Bxb6 cxb6 18. Ne4 fxe5 {1-0 Coutinho,S (2208)-Andrade,F Brasilia Taca op 9th 2005 (1)}) 12... fxg6 {[%emt 0:00:30]} 13. b3 {[%emt 0:02:07]} g5 {[%emt 0:02:21]} 14. Ne4 {[%emt 0:06:02]} h6 {[%emt 0:00:29]} 15. h3 {[%emt 0:08:25]} Qe8 {[%emt 0:01:21]} 16. Qc2 {[%emt 0:02:34]} Qg6 {[%emt 0:03:07]} 17. Rf2 {[%emt 0:07:02]} Nb4 {[%emt 0:04:55]} 18. Qb1 {[%emt 0:01:02]} Kh8 {[%emt 0:00:34]} (18... Qh7 $14) 19. Nc5 $1 $18 {[%emt 0:07:36]} Qxb1+ {[%emt 0:05:29]} 20. Rxb1 {[%emt 0:00:02]} Bxc5 {[%emt 0:05:31]} 21. dxc5 {[%emt 0:00:06]} Nd7 {[%emt 0:03:22]} 22. Rd1 $1 {[%emt 0:00:23]} Rf7 {[%emt 0:01:30]} 23. Nxg5 $1 {[%emt 0:03:33]} Rxf2 {[%emt 0:00:13]} 24. Bxf2 {[%emt 0:00:14]} Nf8 {[%emt 0:00:04]} 25. Nf3 {[%emt 0:05:19]} Nc6 {[%emt 0:00:42]} 26. Kf1 {[%emt 0:03:37]} Kg8 {[%emt 0:02:50]} 27. Ke2 {[%emt 0:01:32]} Ng6 {[%emt 0:03:27]} 28. Ke3 {[%emt 0:02:32]} a5 {[%emt 0:01:36]} 29. a4 {[%emt 0:04:19]} Rd8 {[%emt 0:00:25]} (29... Rf8 $16) 30. Rxd8+ $18 {[%emt 0:04:31]} Nxd8 {[%emt 0:02:07]} 31. Ke4 {[%emt 0:01:32]} (31. Nd4 $142 $1 {Black must now prevent Be1.} Nxe5 32. Bg3) 31... Nf8 {[%emt 0:00:17]} (31... Nc6 $16) 32. Nd4 $18 {[%emt 0:01:56]} Nd7 {[%emt 0:02:30]} 33. Nb5 {[%emt 0:00:44]} b6 {[%emt 0:00:02]} 34. Nxc7 {[%emt 0:08:35]} Nxc5+ {[%emt 0:00:06]} 35. Bxc5 {[%emt 0:00:14]} bxc5 {[%emt 0:00:02]} 36. Nb5 {[%emt 0:00:16]} Kf7 {[%emt 0:00:44]} 37. Nd6+ {[%emt 0:00:18]} Ke7 {[%emt 0:00:03]} 38. h4 {[%emt 0:00:25]} g6 {[%emt 0:00:06]} 39. Kf4 {[%emt 0:00:38]} Kd7 $2 {[%emt 0:01:02]} (39... Kf8 {is tougher.} 40. Ne4 Nb7) 40. Ne4 $18 {[%emt 0:02:53]} Kc6 {[%emt 0:00:01]} 41. h5 {[%emt 0:02:00]} gxh5 {[%emt 0:00:26]} 42. g3 {[%emt 0:00:12]} Kb6 {[%emt 0:00:52]} 43. Nf6 {[%emt 0:00:08]} Kc7 {[%emt 0:00:03]} 44. Nxh5 {[%emt 0:03:01]} Nc6 {[%emt 0:00:12]} 45. Nf6 $1 {[%emt 0:00:27]} Nd4 {[%emt 0:00:39]} 46. Ne4 $2 {[%emt 0:00:05]} (46. Ng8 $18) 46... Nxb3 $14 {[%emt 0:02:31]} 47. Kg4 {[%emt 0:00:05]} Kc6 $2 {[%emt 0:00:27][%mdl 8192]} (47... Nd4 $16) 48. Kh5 $18 {[%emt 0:00:34]} Nd4 {[%emt 0:00:02]} 49. Nd2 {[%emt 0:01:54]} ({Less strong is} 49. Kxh6 Nf3 $16) 49... Nf5 {[%emt 0:01:03] [#]} 50. Nf1 $1 {[%emt 0:00:28]} Nd4 {[%emt 0:00:08]} 51. Kxh6 {[%emt 0:01:09]} Nf3 {[%emt 0:00:04] [#]} 52. g4 {[%emt 0:00:13]} ({Better is} 52. Kh5 $1 $18) 52... Nxe5 $16 {[%emt 0:00:04]} 53. Ne3 {[%emt 0:00:02]} (53. g5 $16 Nxc4 54. g6) 53... Kd6 $11 {[%emt 0:00:35]} 54. g5 {[%emt 0:00:55]} Nf7+ {[%emt 0:01:46]} 55. Kg6 {[%emt 0:00:16]} Nxg5 $1 {[%emt 0:00:14]} 56. Kxg5 {[%emt 0:00:05]} Ke5 {[%emt 0:00:02]} 57. Nc2 {[%emt 0:01:06]} Ke4 {[%emt 0:00:13]} 58. Kf6 {[%emt 0:00:26]} Kd3 {[%emt 0:02:59]} 59. Na3 {[%emt 0:00:35]} Kc3 {[%emt 0:00:06]} 60. Kxe6 {[%emt 0:00:19]} Kb4 {[%emt 0:00:08]} 61. Kd5 {[%emt 0:00:59]} Kxa3 {[%emt 0:00:05]} 62. Kxc5 {[%emt 0:00:05]} Kxa4 {[%emt 0:00:01]} 1/2-1/2

[Event "Baku Open 2024"]
[Site "Baku"]
[Date "2024.07.04"]
[Round "6.13"]
[White "Shuvalova, Polina"]
[Black "Mohamed Anees M"]
[Result "1-0"]
[ECO "B29"]
[WhiteElo "2467"]
[BlackElo "2306"]
[Annotator "TA"]
[PlyCount "77"]
[EventDate "2024.06.29"]
[EventType "swiss"]
[EventCountry "AZE"]
[SourceTitle "playchess.com"]
[Source "ChessBase"]
[SourceQuality "1"]
[TimeControl "5400+30"]

{[%evp 10,77,42,39,63,56,66,58,80,-281,83,90,87,99,77,59,62,58,76,65,73,55,83,37,39,0,0,0,0,0,0,0,0,0,0,0,18,0,24,15,21,6,19,0,0,0,0,0,0,0,0,0,1339,1323,1146,843,29974,29973,29973,29975,29974,29978,29978,29979,29979,29980,29980,29981,29983,29984]} 1. e4 {[%emt 0:00:04]} c5 {[%emt 0:00:17]} 2. Nf3 {[%emt 0:00:05]} Nf6 {[%emt 0:00:07]} 3. Nc3 {[%emt 0:00:51]} d5 {[%emt 0:00:12]} 4. exd5 {[%emt 0:00:33]} Nxd5 {[%emt 0:00:06]} 5. Bb5+ {[%emt 0:00:06]} Bd7 {[%emt 0:00:15]} 6. Ne5 {[%emt 0:00:24]} Bxb5 {[%emt 0:00:37]} 7. Qf3 {[%emt 0:02:21][%csl Ge5][%cal Rf3f7]} ({But not} 7. Nxb5 e6 $11) 7... f6 {[%emt 0:00:07]} 8. Nxb5 {[%emt 0:00:40] Strongly threatening Qh5+.} Na6 {[%emt 0:00:26] White is slightly better.} 9. Qh5+ {[%emt 0:00:45]} g6 {[%emt 0:00:07]} 10. Nxg6 {[%emt 0:00:04] White is more active.} hxg6 {[%emt 0:00:06]} 11. Qxh8 {[%emt 0:00:03] Hoping for Qh7.} Qd7 {[%emt 0:00:08] [#]} 12. Qh4 $1 {[%emt 0:01:00]} Qxb5 {[%emt 0:00:25]} 13. c4 $1 {[%emt 0:00:07]} Qb4 {[%emt 0:00:22]} 14. Qe4 {[%emt 0:03:10][%mdl 1024] White has strong compensation.} Ndc7 {[%emt 0:00:14]} 15. Qxg6+ {[%emt 0:00:38]} Kd8 {[%emt 0:00:06]} 16. Qg8 {[%emt 0:07:36]} ({White should play} 16. b3 $16) 16... Kd7 $14 {[%emt 0:05:45]} 17. O-O {[%emt 0:03:33][%cal Bh1f1,Bf1f3,Bf3h3][%mdl 32]} Qb6 {[%emt 0:02:36]} 18. b3 {[%emt 0:06:19]} Nb4 {[%emt 0:06:03]} 19. Bb2 {[%emt 0:00:53]} Nd3 {[%emt 0:02:38] Wards off d4} 20. Bc3 {[%emt 0:00:33]} Rd8 {[%emt 0:01:13]} 21. f4 {[%emt 0:02:22]} Ne6 {[%emt 0:18:15][%cal Ob6d6]} 22. Rf3 {[%emt 0:13:58]} Nb4 {[%emt 0:19:42]} (22... Nexf4 $2 {is the wrong capture.} 23. Qg4+ Qe6 24. Rxf4 Nxf4 25. Qxf4 $18) (22... Ndxf4 $5 23. Re1 Bg7 $14) 23. Re1 {[%emt 0:14:47][%cal Ba1e1,Be1e4,Be4e5][%mdl 32] aiming for Qg4.} Nc2 {[%emt 0:07:29]} 24. Re4 {[%emt 0:05:11] And now Qg4 would win. Really sharp!} Ned4 {[%emt 0:01:56]} 25. Rh3 {[%emt 0:02:03]} Qc6 {[%emt 0:08:02]} 26. d3 {[%emt 0:01:03]} Kc8 {[%emt 0:00:38]} 27. Rh8 {[%emt 0:21:09]} f5 {[%emt 0:06:12]} 28. Re5 {[%emt 0:00:09] Black must now prevent Qf7.} e6 {[%emt 0:00:22]} 29. Bxd4 {[%emt 0:01:08]} Nxd4 {[%emt 0:00:13][%cal Bc2d4,Bd4c6,Bc6e5][%mdl 32]} 30. h4 {[%emt 0:02:39]} Qc7 $2 {[%emt 0:07:17][%mdl 8192] [#]} (30... Qb6 $11) 31. Qxf8 $1 $18 {[%emt 0:01:05]} Nc6 {[%emt 0:07:53] [#]} 32. Qf6 $1 {[%emt 0:00:05]} Nxe5 {[%emt 0:00:10]} (32... Rxh8 33. Qxh8+) 33. Rxd8+ {[%emt 0:00:44] White mates.} Qxd8 {[%emt 0:00:06]} 34. Qxd8+ {[%emt 0:00:13]} Kxd8 {[%emt 0:00:04]} 35. fxe5 {[%emt 0:00:03] KP-KP} Ke7 {[%emt 0:00:07]} 36. Kf2 {[%emt 0:00:14]} Kf7 {[%emt 0:00:05]} 37. Kf3 {[%emt 0:00:22]} Kg6 {[%emt 0:00:06]} 38. g4 {[%emt 0:00:17]} fxg4+ {[%emt 0:00:15]} 39. Kxg4 {[%emt 0:00:04] Weighted Error Value: White=0.06 (flawless) /Black=0.20 (precise) .  Loses game:     	---       	Black=1      Missed win:     	---       	Black=1      Mistake:       	White=1     	---        Inaccurate:     	White=1     	Black=1      OK:         	White=14    	Black=14     Best:        	White=1     	Black=3      Strong:       	White=2     	---} 1-0

[Event "Baku Open 2024"]
[Site "Baku"]
[Date "2024.07.04"]
[Round "6.14"]
[White "Soham Kamotra"]
[Black "Agmanov, Zhandos"]
[Result "0-1"]
[ECO "A14"]
[WhiteElo "2388"]
[BlackElo "2464"]
[Annotator "RC"]
[PlyCount "152"]
[EventDate "2024.06.29"]
[EventType "swiss"]
[EventCountry "AZE"]
[SourceTitle "playchess.com"]
[Source "ChessBase"]
[SourceQuality "1"]
[TimeControl "5400+30"]

1. c4 {[%emt 0:00:02]} Nf6 {[%emt 0:00:39]} 2. g3 {[%emt 0:00:07]} e6 {[%emt 0:00:37]} 3. Bg2 {[%emt 0:00:06]} d5 {[%emt 0:00:03]} 4. Nf3 {[%emt 0:00:09]} Be7 {[%emt 0:00:07]} 5. O-O {[%emt 0:00:08]} O-O {[%emt 0:00:05]} 6. b3 {[%emt 0:00:24]} d4 {[%emt 0:00:22]} 7. e3 {[%emt 0:00:06]} c5 {[%emt 0:00:03]} 8. Ne5 {[%emt 0:00:09]} Qc7 {[%emt 0:00:18]} 9. f4 {[%emt 0:00:19]} Nfd7 {[%emt 0:00:07]} 10. exd4 {[%emt 0:01:27]} cxd4 {[%emt 0:00:08]} 11. Nd3 {[%emt 0:00:03]} Nc6 {[%emt 0:00:09]} 12. Ba3 {[%emt 0:01:09]} Qd8 {[%emt 0:00:14]} 13. Qc1 {[%emt 0:00:51]} a5 {[%emt 0:01:52]} 14. Qb2 {[%emt 0:12:43]} Nb4 {[%emt 0:06:34]} 15. Nf2 {[%emt 0:10:58]} e5 {[%emt 0:06:23]} 16. f5 {[%emt 0:03:51]} Nc5 {[%emt 0:03:57]} 17. Bxb4 {[%emt 0:07:23]} axb4 {[%emt 0:00:07]} 18. a3 {[%emt 0:04:43]} bxa3 {[%emt 0:19:16]} 19. Nxa3 {[%emt 0:02:03]} Bxf5 {[%emt 0:00:35]} 20. b4 {[%emt 0:00:13]} Qb6 {[%emt 0:01:27]} 21. Nb5 {[%emt 0:06:38]} Na6 {[%emt 0:17:53]} 22. Rae1 {[%emt 0:06:20]} Be6 {[%emt 0:11:10]} 23. d3 {[%emt 0:01:41]} Nxb4 {[%emt 0:01:35]} 24. Rxe5 {[%emt 0:00:55]} Nc6 {[%emt 0:00:15]} 25. Re2 {[%emt 0:08:09]} Rad8 {[%emt 0:00:45]} 26. Kh1 {[%emt 0:01:55]} Rfe8 {[%emt 0:04:59]} 27. Qd2 {[%emt 0:02:21]} h6 {[%emt 0:03:37]} 28. Qf4 {[%emt 0:03:39]} Rd7 {[%emt 0:01:56]} 29. h4 {[%emt 0:00:18]} Qd8 {[%emt 0:02:57]} 30. Ng4 {[%emt 0:05:42]} Bf8 {[%emt 0:08:03]} 31. Rfe1 {[%emt 0:00:57]} Bb4 {[%emt 0:01:02]} 32. Rf1 {[%emt 0:01:25]} Bf8 {[%emt 0:02:41]} 33. Nf2 {[%emt 0:02:05]} Qb8 {[%emt 0:02:40]} 34. Qxb8 {[%emt 0:04:16]} Rxb8 {[%emt 0:00:11]} 35. Bh3 {[%emt 0:01:18]} Bxh3 {[%emt 0:02:09]} 36. Nxh3 {[%emt 0:00:03]} Re7 {[%emt 0:02:49]} 37. Rxe7 {[%emt 0:00:46]} Bxe7 {[%emt 0:00:03]} 38. Nf4 {[%emt 0:00:32]} Ra8 {[%emt 0:00:42]} 39. Kg2 {[%emt 0:03:41]} Bc5 {[%emt 0:00:52]} 40. Re1 {[%emt 0:00:59]} Nb4 {[%emt 0:00:04]} 41. h5 {[%emt 0:00:54]} Nc6 {[%emt 0:00:48]} 42. Kf3 {[%emt 0:00:31]} Kh7 {[%emt 0:00:36]} 43. Re4 {[%emt 0:02:33]} Rd8 {[%emt 0:00:22]} 44. Re2 {[%emt 0:01:06]} Be7 {[%emt 0:00:45]} 45. Nd5 {[%emt 0:00:38]} Bc5 {[%emt 0:00:24]} 46. Re4 {[%emt 0:00:59]} Ra8 {[%emt 0:00:25]} 47. Nf4 {[%emt 0:00:38]} Rd8 {[%emt 0:00:30]} 48. Ne2 {[%emt 0:01:31]} Kg8 {[%emt 0:00:39]} 49. Nc1 {[%emt 0:01:36]} Nb4 {[%emt 0:00:27]} 50. Re5 {[%emt 0:00:41]} b6 {[%emt 0:00:17]} 51. Re4 {[%emt 0:00:38]} g6 {[%emt 0:00:27]} 52. hxg6 {[%emt 0:00:09]} fxg6 {[%emt 0:00:01]} 53. Ke2 {[%emt 0:00:18]} Kf7 {[%emt 0:00:20]} 54. Nb3 {[%emt 0:00:25]} Nc6 {[%emt 0:00:42]} 55. Nc7 {[%emt 0:00:13]} Bd6 {[%emt 0:00:40]} 56. Nd5 {[%emt 0:02:04]} Bxg3 {[%emt 0:01:02]} 57. Kf3 {[%emt 0:00:11]} Be5 {[%emt 0:00:21]} 58. Nxb6 {[%emt 0:00:15]} h5 {[%emt 0:00:46]} 59. Na5 {[%emt 0:01:13]} Nxa5 {[%emt 0:00:15]} 60. Rxe5 {[%emt 0:00:01]} Nc6 {[%emt 0:00:12]} 61. Rc5 {[%emt 0:00:19]} Rd6 {[%emt 0:00:21]} 62. Nd5 {[%emt 0:00:24]} g5 {[%emt 0:00:14]} 63. Nc7 {[%emt 0:01:05]} Kg6 {[%emt 0:00:21]} 64. Nd5 {[%emt 0:00:23]} Kg7 {[%emt 0:00:54]} 65. Nc7 {[%emt 0:00:22]} Kg6 {[%emt 0:01:09]} 66. Nd5 {[%emt 0:00:04]} Kg7 {[%emt 0:00:31]} 67. Nc7 {[%emt 0:00:06]} Rf6+ {[%emt 0:00:02]} 68. Kg2 {[%emt 0:01:37]} Kh6 {[%emt 0:00:12]} 69. Ne8 {[%emt 0:00:14]} Rg6 {[%emt 0:00:39]} 70. Rd5 {[%emt 0:00:02]} h4 {[%emt 0:00:41]} 71. Nd6 {[%emt 0:00:02]} Kh5 {[%emt 0:00:21]} 72. Nf5 {[%emt 0:00:15]} Kg4 {[%emt 0:00:35]} 73. c5 {[%emt 0:01:25]} Rf6 {[%emt 0:00:30]} 74. Nxd4 {[%emt 0:00:20]} h3+ {[%emt 0:00:16]} 75. Kh2 {[%emt 0:01:04]} Rf2+ {[%emt 0:00:34]} 76. Kg1 {[%emt 0:00:06]} h2+ {[%emt 0:00:03]} 0-1